bitfinex/quotes_ETHUSD_20250115
["timestamp","ask_amount","ask_price","bid_price","bid_amount"]
[1736963880828,0.18304834,3328.8,3328.7,40.58209578]
[1736963881506,3.18712834,3328.8,3328.7,40.38509578]
[1736963881818,0.18304834,3328.8,3328.7,40.58209578]
[1736963882724,6.18712834,3328.8,3328.7,5.38509578]
[1736963882927,0.18304834,3328.8,3328.7,5.38509578]
[1736963883109,0.18304834,3328.8,3328.7,40.38509578]
[1736963883511,0.18304834,3328.8,3328.7,44.26577322]
[1736963883749,0.18304834,3329.1,3329.0,3.0039]
[1736963883978,0.18304834,3329.3,3329.2,4.51812]
[1736963884166,0.18304834,3329.5,3329.4,3.00354]
[1736963884315,0.18304834,3329.5,3329.4,41.20554]
[1736963884513,0.18304834,3329.7,3329.6,5.00336]
[1736963884711,0.18304834,3329.7,3329.6,6.66286]
[1736963885455,0.18304834,3329.7,3329.4,44.18177477]
[1736963885456,0.18304834,3330.2,3330.1,3.00291]
[1736963885629,0.17516767,3330.2,3330.1,6.00691]
[1736963885813,3.31446531,3331.6,3330.4,5.00264]
[1736963885814,0.17516767,3330.5,3330.4,5.00264]
[1736963886015,0.17516767,3330.5,3330.4,43.701904]
[1736963886240,0.17516767,3330.5,3330.4,45.361404]
[1736963886518,0.17516767,3330.8,3330.7,3.00237]
[1736963886718,0.17516767,3330.8,3330.4,42.358764]
[1736963887018,0.17516767,3330.6,3330.5,3.00253]
[1736963887218,0.17516767,3330.6,3330.4,38.004]
[1736963887445,0.17516767,3330.6,3330.5,0.195]
[1736963888974,3.00151,3331.7,3330.5,0.195]
[1736963889269,0.17516767,3330.6,3330.5,0.195]
[1736963889555,0.17516767,3330.6,3330.5,3.199]
[1736963889856,0.17516767,3330.6,3330.5,6.17523477]
[1736963890631,0.17516767,3330.6,3330.5,9.17778477]
[1736963892251,0.17516767,3330.6,3330.5,10.75928477]
[1736963892559,0.17516767,3330.8,3330.7,3.00237]
[1736963893721,0.17516767,3330.8,3330.7,38.00237]
[1736963893923,0.17516767,3330.8,3330.7,40.97860477]
[1736963899122,0.17516767,3330.6,3330.5,3.004]
[1736963899326,0.17516767,3330.1,3330.0,3.005]
[1736963899527,0.17516767,3330.1,3330.0,38.2]
[1736963899682,0.17516767,3330.3,3330.2,2.0]
[1736963899883,0.17516767,3330.3,3330.2,5.00282]
[1736963900082,0.17516767,3330.3,3330.2,7.97905477]
[1736963900324,0.17516767,3330.3,3330.2,9.59725477]
[1736963900621,0.17516767,3330.3,3330.2,3.6182]
[1736963901184,0.17516767,3330.3,3330.2,2.0]
[1736963901924,0.17516767,3330.3,3330.2,2.195]
[1736963903394,0.17516767,3330.3,3330.2,37.195]
[1736963904338,0.17516767,3330.3,3330.2,40.19782]
[1736963904511,0.17516767,3330.3,3330.2,43.17405477]
[1736963905142,3.00185,3331.3,3330.2,43.17405477]
[1736963905143,0.17516767,3330.5,3330.4,3.00264]
[1736963905353,0.17516767,3330.7,3330.6,5.00246]
[1736963905759,0.17516767,3330.7,3330.6,40.00246]
[1736963908258,0.17516767,3330.7,3330.6,35.0]
[1736963909571,0.17516767,3330.7,3330.6,35.195]
[1736963910476,0.17516767,3330.5,3330.4,3.004]
[1736963910623,0.17516767,3330.5,3330.4,3.199]
[1736963910827,0.17516767,3330.5,3330.4,38.199]
[1736963911064,0.17516767,3330.5,3330.4,35.0]
[1736963911373,3.17771767,3330.5,3330.4,35.195]
[1736963911739,0.17516767,3330.5,3330.4,35.195]
[1736963912361,0.17516767,3330.5,3330.4,35.55082093]
[1736963912671,0.17516767,3330.5,3330.4,35.195]
[1736963913431,0.17516767,3330.5,3330.4,37.195]
[1736963913647,0.17516767,3330.5,3330.4,40.19764]
[1736963913877,0.17516767,3330.5,3330.4,43.20164]
[1736963915275,0.17516767,3330.5,3330.4,38.199]
[1736963915477,0.17516767,3330.5,3330.4,35.195]
[1736963917659,0.17516767,3330.5,3330.4,35.191]
[1736963923794,0.17516767,3330.5,3330.4,40.16723477]
[1736963923997,0.17516767,3330.5,3330.4,43.16987477]
[1736963924288,0.17516767,3330.5,3330.4,40.16723477]
[1736963924690,0.17516767,3330.5,3330.4,37.191]
[1736963925701,0.17516767,3330.5,3330.4,44.81684]
[1736963928012,0.17516767,3330.5,3330.4,45.36684]
[1736963928537,0.17516767,3330.5,3330.4,42.3642]
[1736963928728,0.17516767,3330.5,3330.4,45.36684]
[1736963928899,0.17516767,3330.5,3330.4,48.34307477]
[1736963929306,0.17516767,3330.5,3330.4,45.34043477]
[1736963929604,0.17516767,3330.5,3330.4,48.34307477]
[1736963932092,0.17516767,3330.5,3330.4,43.72123477]
[1736963932809,0.17516767,3330.5,3330.4,38.195]
[1736963933621,0.17516767,3330.5,3330.4,35.191]
[1736963938202,0.17516767,3330.5,3330.4,35.0]
[1736963938404,0.17516767,3330.5,3330.4,35.191]
[1736963942360,0.17516767,3329.7,3329.6,4.163]
[1736963942511,0.17516767,3329.7,3329.6,2.354]
[1736963942962,0.17516767,3329.7,3329.6,35.191]
[1736963945567,12.17516767,3329.7,3329.6,45.22759477]
[1736963945866,12.0,3329.7,3329.6,48.23259477]
[1736963946084,12.17516767,3329.7,3329.6,48.23259477]
[1736963946366,12.17516767,3329.7,3329.6,44.67759477]
[1736963947457,12.17516767,3329.7,3329.6,41.70136]
[1736963947827,12.17516767,3329.7,3329.6,38.698]
[1736963948570,12.17516767,3329.7,3329.6,41.703]
[1736963948926,12.17516767,3329.7,3329.6,44.70636]
[1736963949236,12.17516767,3329.7,3329.6,41.70136]
[1736963949440,12.17516767,3329.7,3329.6,44.67759477]
[1736963950138,12.17516767,3329.7,3329.6,43.22759477]
[1736963950356,12.17516767,3329.7,3329.6,46.23259477]
[1736963952240,12.17516767,3329.7,3329.6,43.25636]
[1736963952839,12.17516767,3329.7,3329.6,36.005]
[1736963953169,12.17516767,3329.7,3329.6,33.186]
[1736963953524,0.17516767,3328.8,3328.7,7.38509578]
[1736963953726,0.17516767,3328.8,3328.7,5.57109578]
[1736963954564,0.17516767,3328.8,3328.7,40.57109578]
[1736963956002,3.17924767,3328.8,3328.7,40.57109578]
[1736963956313,3.17924767,3328.8,3328.7,40.38509578]
[1736963956517,3.17924767,3328.8,3328.7,5.38509578]
[1736963956865,0.17516767,3328.8,3328.7,5.38509578]
[1736963957107,0.17516767,3328.8,3328.7,8.36133055]
[1736963957259,0.17516767,3328.8,3328.7,5.38509578]
[1736963957609,0.17516767,3328.8,3328.7,40.38509578]
[1736963959783,0.17516767,3328.8,3328.7,40.57109578]
[1736963960178,0.17516767,3328.8,3328.7,40.38509578]
[1736963960384,0.17516767,3328.8,3328.7,40.57109578]
[1736963962039,0.17516767,3328.8,3328.7,5.57109578]
[1736963966038,0.17516767,3328.8,3328.7,40.57109578]
[1736963967137,0.17516767,3328.8,3328.7,48.55150055]
[1736963967435,0.17516767,3328.8,3328.7,52.10750055]
[1736963969123,0.17516767,3328.8,3328.7,45.57709578]
[1736963969513,0.17516767,3328.8,3328.7,40.57109578]
[1736963970537,0.17516767,3328.8,3328.7,48.58126578]
[1736963970742,0.02516767,3328.8,3328.7,48.58126578]
[1736963971794,0.02516767,3328.8,3328.7,43.57709578]
[1736963971999,0.02516767,3328.8,3328.7,40.57109578]
[1736963972195,0.02516767,3328.8,3328.7,5.57109578]
[1736963972607,0.02516767,3328.8,3328.7,40.57109578]
[1736963973229,0.02516767,3328.8,3328.7,40.42109578]
[1736963973543,0.02516767,3328.8,3328.7,49.90850055]
[1736963975730,0.02516767,3328.8,3328.7,49.75850055]
[1736963977307,0.02516767,3328.8,3328.7,46.78226578]
[1736963977531,0.02516767,3328.8,3328.7,11.78226578]
[1736963978146,0.02516767,3328.8,3328.7,40.27109578]
[1736963979007,0.02516767,3328.8,3328.7,45.27526578]
[1736963979555,0.02516767,3328.8,3328.7,42.27109578]
[1736963979754,0.02516767,3328.8,3328.7,45.27709578]
[1736963981323,0.02516767,3328.8,3328.7,51.25750055]
[1736963983466,0.02516767,3329.0,3328.8,1.5378]
[1736963983627,0.02516767,3329.0,3328.9,3.00399]
[1736963985574,0.02516767,3329.0,3328.8,1.5378]
[1736963985751,0.02516767,3329.0,3328.7,45.27709578]
[1736963985957,0.02516767,3328.8,3328.7,42.08509578]
[1736963986179,0.02516767,3328.8,3328.7,40.27109578]
[1736963989469,0.02516767,3328.8,3328.7,5.27109578]
[1736963989866,0.02516767,3328.8,3328.7,43.27526578]
[1736963990071,0.02516767,3328.8,3328.7,46.25150055]
[1736963991285,0.02516767,3328.8,3328.7,40.27109578]
[1736963992730,0.02516767,3328.8,3328.7,40.08509578]
[1736963993024,0.02516767,3328.8,3328.7,40.27109578]
[1736963994225,0.02516767,3328.8,3328.7,5.27109578]
[1736963994731,0.02516767,3328.8,3328.7,40.27109578]
[1736964000154,0.00420767,3328.8,3328.7,40.27109578]
[1736964000436,0.00420767,3328.8,3328.7,44.80263055]
[1736964000648,0.00420767,3328.8,3328.7,43.24733055]
[1736964001036,0.00420767,3328.8,3328.7,40.27109578]
[1736964001407,0.00420767,3328.8,3328.7,43.27526578]
[1736964001619,0.00420767,3329.0,3328.8,3.004]
[1736964001849,0.00420767,3329.2,3329.1,5.00381]
[1736964002153,0.00420767,3329.6,3329.3,4.55893]
[1736964002335,12.00420767,3329.7,3329.6,4.55866]
[1736964002515,12.00420767,3329.7,3329.6,7.56366]
[1736964002870,12.00420767,3329.7,3329.6,4.5603]
[1736964003022,12.00420767,3329.7,3329.6,0.186]
[1736964003225,15.00747767,3329.7,3329.6,0.186]
[1736964003641,15.00747767,3329.7,3329.6,30.2277]
[1736964003808,12.00420767,3329.7,3329.6,30.2277]
[1736964004007,12.00420767,3329.7,3329.6,33.20393477]
[1736964004253,12.00420767,3329.7,3329.6,30.2277]
[1736964006949,12.00420767,3329.7,3329.6,65.2277]
[1736964007241,12.00420767,3329.7,3329.6,70.23106]
[1736964008631,12.00420767,3329.7,3329.6,76.96245578]
[1736964009667,12.0,3329.7,3329.6,76.96245578]
[1736964009831,12.0,3329.7,3329.6,79.93869055]
[1736964010251,4.4918,3329.7,3329.6,82.93869055]
[1736964010411,4.4918,3329.7,3329.6,83.48869055]
[1736964010939,4.4918,3329.7,3329.6,82.93869055]
[1736964012065,4.4918,3329.7,3329.6,82.82469055]
[1736964013449,1.48852,3329.7,3329.6,83.37469055]
[1736964013656,0.00420767,3330.4,3330.3,6.53903]
[1736964013972,0.00420767,3330.4,3330.3,14.62812578]
[1736964014332,0.00420767,3330.4,3330.3,49.62812578]
[1736964014562,3.00138,3331.8,3330.3,49.62812578]
[1736964014563,0.00420767,3330.9,3330.8,3.00228]
[1736964014716,0.00420767,3330.9,3330.8,6.19228]
[1736964014918,0.00420767,3330.9,3330.8,3.19]
[1736964015163,0.00420767,3330.9,3330.8,38.19]
[1736964017056,0.00420767,3330.9,3330.8,0.186]
[1736964017419,3.00639767,3330.9,3330.8,0.186]
[1736964017623,0.00420767,3330.5,3330.3,5.08509578]
[1736964017881,0.00420767,3330.5,3330.4,0.186]
[1736964018175,0.00420767,3330.5,3330.4,35.186]
[1736964018795,0.00420767,3330.5,3330.4,40.9664362]
[1736964018917,0.00420767,3330.7,3330.6,3.00246]
[1736964019231,0.00420767,3330.7,3330.6,8.08755578]
[1736964019671,0.00420767,3330.7,3330.6,43.08755578]
[1736964019974,0.00420767,3330.7,3330.6,46.06379055]
[1736964022666,0.00420767,3330.9,3330.8,2.0]
[1736964022872,0.00420767,3330.9,3330.8,8.00628]
[1736964023729,0.00420767,3330.9,3330.8,9.54258]
[1736964024153,0.00420767,3331.3,3331.2,2.0]
[1736964024376,0.00420767,3331.3,3331.2,3.003]
[1736964024722,0.00420767,3331.3,3331.2,38.003]
[1736964025971,0.00420767,3331.3,3331.2,38.189]
[1736964026137,0.00420767,3331.3,3331.2,0.186]
[1736964026338,0.00420767,3331.0,3330.9,5.08509578]
[1736964026558,3.00630767,3331.0,3330.9,5.08509578]
[1736964027916,3.28258857,3331.0,3330.9,5.08509578]
[1736964028573,0.28048857,3331.0,3330.9,5.08509578]
[1736964029271,0.00420767,3331.0,3330.9,5.08509578]
[1736964030915,0.00420767,3331.0,3330.9,43.08728578]
[1736964031198,0.00420767,3331.0,3330.9,51.06752055]
[1736964031416,0.00420767,3331.2,3331.1,3.00201]
[1736964032006,0.00420767,3331.4,3331.3,10.08692578]
[1736964032304,0.00420767,3331.4,3331.3,13.08992578]
[1736964032661,0.00420767,3331.4,3331.3,48.08992578]
[1736964032996,0.00420767,3331.4,3331.3,43.27409578]
[1736964033198,0.00420767,3331.4,3331.3,40.27109578]
[1736964034207,0.00420767,3331.4,3331.3,40.02149578]
[1736964038496,0.00420767,3331.4,3331.3,4.77149578]
[1736964038893,0.00420767,3331.4,3331.3,39.70709578]
[1736964039389,0.00420767,3331.4,3331.3,39.52109578]
[1736964039590,0.00420767,3331.4,3331.3,39.70709578]
[1736964040466,0.00420767,3331.4,3331.3,39.52109578]
[1736964040937,3.00594767,3331.4,3331.3,4.45109578]
[1736964041248,6.00594767,3331.4,3331.3,4.45109578]
[1736964041399,7.33329004,3331.4,3331.3,4.45109578]
[1736964041598,7.08329004,3331.4,3331.3,4.45109578]
[1736964041800,6.28329004,3331.4,3331.3,4.45109578]
[1736964043036,0.28155004,3331.4,3331.3,4.45109578]
[1736964045128,0.00420767,3331.4,3331.3,4.45109578]
[1736964045712,0.00420767,3331.4,3331.3,39.89620536]
[1736964046038,0.00420767,3331.4,3331.3,41.89620536]
[1736964046738,0.00420767,3331.4,3331.3,39.45109578]
[1736964047333,0.00420767,3331.4,3331.3,39.63709578]
[1736964047508,0.00420767,3331.4,3331.3,4.63709578]
[1736964048025,0.00420767,3331.4,3331.3,39.63709578]
[1736964050111,0.00420767,3331.6,3331.5,4.45109578]
[1736964051625,3.00576767,3331.6,3331.5,4.45109578]
[1736964052030,3.28343356,3331.6,3331.5,4.45109578]
[1736964054525,0.28187356,3331.6,3331.5,4.45109578]
[1736964055457,0.28187356,3331.6,3331.5,39.45109578]
[1736964055682,0.28187356,3331.6,3331.5,4.45109578]
[1736964056095,0.28187356,3331.6,3331.5,39.45109578]
[1736964056276,3.00576767,3331.6,3331.5,39.45109578]
[1736964056750,3.00576767,3331.6,3331.5,4.45109578]
[1736964058077,0.00420767,3331.6,3331.5,4.45109578]
[1736964058452,0.28219651,3331.6,3331.5,4.45109578]
[1736964060883,0.00420767,3331.6,3331.5,4.45109578]
[1736964061176,0.00420767,3331.6,3331.5,5.06092536]
[1736964061486,0.00420767,3331.6,3331.5,4.45109578]
[1736964062056,3.00576767,3331.6,3331.5,4.45109578]
[1736964062439,0.00420767,3331.6,3331.5,4.45109578]
[1736964067260,0.00420767,3331.6,3331.5,7.45274578]
[1736964067456,3.00071,3332.6,3331.5,7.45274578]
[1736964067819,1.201752,3334.1,3333.5,5.99985]
[1736964068017,3.11293212,3333.7,3333.6,4.6096]
[1736964068215,3.11293212,3333.7,3333.6,7.60936]
[1736964068717,0.11325212,3333.7,3333.6,8.34536]
[1736964068923,6.16525093,3335.0,3333.6,8.34536]
[1736964068924,5.99115847,3336.0,3334.4,2.99901]
[1736964069067,5.99115847,3336.0,3334.0,2.99938]
[1736964069068,2.99346847,3335.7,3333.7,3.0]
[1736964069263,2.99824,3335.3,3333.7,7.99965]
[1736964069464,2.99869,3334.8,3333.8,0.186]
[1736964069726,3.52493803,3335.0,3333.8,0.186]
[1736964070012,3.52493803,3335.0,3333.6,13.9596]
[1736964070013,2.99877,3334.7,3333.6,13.9596]
[1736964070223,2.99877,3334.7,3333.7,0.186]
[1736964071264,3.0,3334.7,3333.7,0.186]
[1736964071899,0.51667036,3334.9,3333.7,0.186]
[1736964072102,0.25,3334.6,3333.6,12.35]
[1736964072275,2.99921,3334.3,3333.6,12.35]
[1736964072484,3.0,3334.4,3333.6,12.35]
[1736964072485,1.6494,3334.2,3333.6,12.35]
[1736964072986,4.64863,3334.2,3333.6,12.35]
[1736964073195,1.6494,3334.2,3333.6,12.35]
[1736964074603,1.6494,3334.2,3333.7,0.186]
[1736964074838,1.6494,3334.6,3333.8,1.6096]
[1736964075046,1.6494,3335.0,3333.8,6.6106]
[1736964075205,1.6494,3335.0,3333.8,3.6096]
[1736964075741,1.6494,3335.0,3333.8,6.60909]
[1736964075900,1.6494,3335.0,3333.8,1.6096]
[1736964076105,3.5160338,3334.9,3333.7,0.186]
[1736964076539,3.52493803,3334.8,3333.7,0.186]
[1736964076840,5.17433803,3334.4,3333.6,12.35]
[1736964076999,2.99919,3334.3,3333.6,12.35]
[1736964077200,5.17433803,3334.4,3333.6,12.35]
[1736964077400,0.5174338,3334.3,3333.6,12.35]
[1736964079830,1.6494,3334.4,3333.6,12.35]
[1736964081102,1.6494,3334.4,3333.6,15.34973]
[1736964082246,1.6494,3334.4,3333.6,12.35]
[1736964082822,4.6494,3334.7,3333.6,12.35]
[1736964083160,4.6494,3334.7,3333.7,1.6096]
[1736964083662,4.6494,3334.7,3333.7,4.60926]
[1736964084020,7.64818,3334.7,3333.7,1.6096]
[1736964085265,7.64818,3334.7,3333.6,12.35]
[1736964085266,2.99914,3334.3,3333.6,12.35]
[1736964085427,3.52493803,3334.4,3333.6,12.35]
[1736964085983,2.99889,3334.6,3333.6,12.35]
[1736964086146,3.0,3334.5,3333.6,15.34974]
[1736964086330,1.6494,3334.7,3333.7,2.99962]
[1736964086534,1.6494,3334.7,3333.6,12.35]
[1736964086535,1.6494,3334.7,3333.8,2.99955]
[1736964086840,3.0,3334.9,3333.9,4.60908]
[1736964087046,4.6494,3335.1,3333.9,1.6096]
[1736964087379,2.9987,3334.8,3333.9,1.6096]
[1736964088184,2.99861,3334.9,3333.9,1.6096]
[1736964088318,2.99861,3334.9,3333.9,4.60906]
[1736964089141,2.99871,3334.8,3334.0,0.186]
[1736964089333,0.764811,3334.8,3334.0,0.186]
[1736964089575,4.6494,3335.1,3334.0,0.186]
[1736964090221,3.0,3335.1,3334.1,1.5315]
[1736964090433,5.99841,3335.1,3334.2,2.9992]
[1736964090571,5.99841,3335.1,3334.1,1.5315]
[1736964091980,5.99841,3335.1,3334.1,4.53073]
[1736964092327,6.752971,3335.1,3334.1,4.53073]
[1736964092466,6.752971,3335.1,3334.2,2.9992]
[1736964093189,0.754561,3335.1,3334.2,2.9992]
[1736964093721,3.752991,3335.1,3334.1,1.5315]
[1736964093920,1.7972,3335.7,3334.1,1.5315]
[1736964094064,4.5472,3335.5,3334.1,1.5315]
[1736964094264,2.99852,3335.0,3334.1,1.5315]
[1736964094994,2.99866,3334.9,3334.1,1.5315]
[1736964095168,3.298526,3334.9,3334.1,1.5315]
[1736964095368,0.299866,3334.9,3334.1,1.5315]
[1736964096229,2.99852,3335.0,3334.1,4.53079]
[1736964096569,2.99852,3335.0,3334.1,1.5315]
[1736964097311,3.2760487,3334.9,3334.1,1.5315]
[1736964098113,0.2774387,3334.9,3334.1,1.5315]
[1736964098619,0.2774387,3334.8,3334.1,1.5315]
[1736964098819,0.60503457,3334.8,3334.1,1.5315]
[1736964099418,0.2774387,3334.7,3334.3,4.53987]
[1736964099721,0.2774387,3334.7,3334.3,1.5408]
[1736964100122,3.2762287,3334.7,3334.4,0.187]
[1736964100327,0.2774387,3334.7,3334.4,0.187]
[1736964100623,0.2774387,3334.6,3334.4,0.187]
[1736964101026,0.60505457,3334.6,3334.4,0.187]
[1736964101631,0.2774387,3334.6,3334.4,0.187]
[1736964101922,0.2774387,3334.5,3334.4,0.187]
[1736964106990,0.2774387,3334.5,3334.4,1.7278]
[1736964107391,0.2774387,3334.5,3334.4,1.5408]
[1736964107729,0.2774387,3334.8,3334.4,1.7278]
[1736964107925,0.90503457,3334.8,3334.4,1.7278]
[1736964108129,0.2774387,3334.8,3334.4,1.7278]
[1736964109033,2.99841,3335.1,3334.4,1.64295321]
[1736964109213,3.32994276,3335.7,3334.4,1.64295321]
[1736964109214,1.5856,3335.6,3334.4,1.64295321]
[1736964109415,2.9979,3335.7,3334.5,12.35]
[1736964109613,2.9979,3335.7,3334.8,2.99866]
[1736964109817,0.45835,3335.6,3334.8,2.99866]
[1736964110042,0.45835,3335.6,3334.9,2.99855]
[1736964110240,0.27789119,3335.5,3335.0,2.99848]
[1736964110444,0.27789119,3335.5,3334.6,2.99886]
[1736964110604,0.27789119,3335.5,3334.7,0.02998462]
[1736964110940,0.27789119,3335.5,3334.9,2.0]
[1736964111138,0.27789119,3335.5,3335.0,0.187]
[1736964111497,2.9978,3335.8,3335.0,0.187]
[1736964111698,2.99791,3335.7,3335.0,0.187]
[1736964111941,1.5856,3335.5,3335.1,0.187]
[1736964112236,2.99842,3335.1,3334.9,0.187]
[1736964112464,2.99823,3335.3,3334.5,12.35]
[1736964112644,2.99866,3334.9,3334.7,0.187]
[1736964113015,0.73622191,3335.4,3334.5,12.35]
[1736964113243,2.99886,3334.6,3334.5,12.537]
[1736964113827,3.27652191,3334.6,3334.5,12.537]
[1736964116390,0.27766191,3334.6,3334.5,12.537]
[1736964117352,0.27766191,3334.6,3334.5,12.35]
[1736964117548,3.27652191,3334.6,3334.5,12.35]
[1736964117806,3.6041741,3334.6,3334.5,12.35]
[1736964118097,5.1897741,3334.6,3334.5,12.35]
[1736964118998,8.1897741,3334.6,3334.5,12.35]
[1736964120706,0.27766191,3334.6,3334.5,12.35]
[1736964121046,0.27766191,3334.6,3334.5,12.537]
[1736964121691,0.27766191,3334.6,3334.5,12.35]
[1736964121995,3.27652191,3334.6,3334.5,12.537]
[1736964122523,7.86212191,3334.6,3334.5,12.35]
[1736964122641,8.50357331,3334.6,3334.5,12.35]
[1736964123310,1.5856,3333.7,3333.1,0.187]
[1736964123606,3.52979543,3333.5,3332.9,3.1085]
[1736964124349,6.52965543,3333.5,3332.9,3.1085]
[1736964124946,6.52965543,3333.5,3333.0,0.187]
[1736964125592,6.52965543,3333.5,3332.9,3.1085]
[1736964125899,6.52965543,3333.5,3333.0,0.187]
[1736964126661,1.5856,3333.7,3332.9,3.1085]
[1736964126868,4.58528,3333.7,3333.0,0.187]
[1736964127081,3.0,3333.8,3333.0,0.187]
[1736964127495,1.6389,3334.1,3333.1,1.5]
[1736964127705,1.6389,3334.1,3333.2,1.5457]
[1736964128122,2.99941,3334.0,3333.2,1.5457]
[1736964128321,3.0,3334.2,3333.2,1.5457]
[1736964128612,2.99934,3334.1,3333.2,1.5457]
[1736964128913,0.27721259,3334.1,3333.5,1.5]
[1736964129112,0.27721259,3334.1,3333.9,1.5457]
[1736964129319,0.27721259,3334.1,3334.0,0.186]
[1736964129960,2.99859,3334.9,3334.1,1.5]
[1736964130877,0.27727181,3334.8,3334.1,1.5]
[1736964131512,0.27727181,3334.8,3334.2,1.5457]
[1736964131874,0.27727181,3334.8,3334.3,35.0]
[1736964132760,2.9985,3335.0,3334.3,35.0]
[1736964133128,2.99834,3335.2,3334.5,1.5457]
[1736964133459,6.52794543,3335.4,3334.5,1.5457]
[1736964133666,3.58763133,3335.6,3334.6,39.49885]
[1736964133894,2.99799,3335.6,3334.7,1.5457]
[1736964134095,3.0,3335.5,3334.7,1.5457]
[1736964134265,2.99799,3335.6,3334.7,1.5457]
[1736964134465,0.27729192,3335.5,3334.7,1.5457]
[1736964134664,3.27535192,3335.5,3334.8,0.186]
[1736964135114,0.27729192,3335.5,3334.8,0.186]
[1736964135580,0.25,3336.5,3335.0,1.5457]
[1736964135581,2.99771,3335.9,3335.0,1.5457]
[1736964136481,0.27725032,3335.8,3335.0,1.5457]
[1736964136624,0.27725032,3335.8,3335.0,4.54412]
[1736964137063,0.27725032,3335.8,3335.2,1.5]
[1736964137245,0.27725032,3335.8,3335.4,1.5]
[1736964137459,0.27725032,3335.8,3335.5,35.0]
[1736964137779,2.99746,3336.2,3335.5,35.0]
[1736964138284,2.99751,3336.1,3335.6,0.186]
[1736964138835,2.99751,3336.1,3335.7,35.0]
[1736964139183,2.99742,3336.2,3335.8,3.0457]
[1736964139787,3.52979543,3336.7,3335.8,3.0457]
[1736964140284,2.99729,3336.4,3335.8,3.0457]
[1736964140431,2.99728,3336.4,3335.8,3.0457]
[1736964140881,2.99728,3336.4,3335.9,35.0]
[1736964141033,3.52979543,3336.7,3335.9,35.0]
[1736964141034,2.99708,3336.6,3335.9,35.0]
[1736964141478,2.99718,3336.5,3335.8,3.0457]
[1736964141786,2.99726,3336.4,3335.8,3.0457]
[1736964141946,3.0,3336.6,3335.9,35.0]
[1736964141947,5.99707,3336.6,3335.9,35.0]
[1736964142152,2.99707,3336.6,3335.9,35.0]
[1736964142444,2.99719,3336.5,3335.9,35.0]
[1736964143842,2.99719,3336.5,3336.0,0.186]
[1736964144587,2.99742,3336.2,3336.1,35.0]
[1736964144887,2.99722,3336.5,3335.8,3.2317]
[1736964145192,2.99724,3336.4,3335.8,3.2317]
[1736964148261,2.99706,3336.6,3335.8,3.2317]
[1736964148464,1.6389,3336.9,3335.8,3.2317]
[1736964148678,2.99714,3336.6,3335.8,3.2317]
[1736964148879,2.99717,3336.5,3335.8,3.2317]
[1736964149403,2.99717,3336.5,3335.9,35.0]
[1736964151607,2.9976,3336.0,3335.8,3.2317]
[1736964151906,2.9976,3336.0,3335.8,1.5]
[1736964152065,1.644,3336.3,3335.8,1.686]
[1736964152259,2.99746,3336.2,3335.8,1.686]
[1736964152765,2.73590274,3336.4,3335.8,1.686]
[1736964152766,2.99727,3336.4,3335.8,1.686]
[1736964153077,2.9971,3336.6,3335.9,1.5306]
[1736964153608,1.644,3336.9,3336.1,1.5]
[1736964153811,2.99679,3336.9,3336.1,1.5]
[1736964154311,2.99679,3336.9,3336.2,35.0]
[1736964154891,2.99679,3336.9,3336.3,1.6381]
[1736964155097,2.99688,3336.8,3336.3,1.6381]
[1736964155499,2.99688,3336.8,3336.4,35.0]
[1736964155876,2.99654,3337.2,3336.5,1.5]
[1736964156386,2.73590274,3337.3,3336.5,1.5]
[1736964156601,2.99643,3337.3,3336.6,35.0]
[1736964156790,2.99643,3337.3,3336.7,1.6381]
[1736964156978,2.99643,3337.3,3336.9,1.5]
[1736964157299,2.99628,3337.5,3336.9,1.5]
[1736964157639,5.73202274,3337.7,3337.0,35.0]
[1736964157861,2.9959,3337.9,3337.0,35.0]
[1736964158040,2.9959,3337.9,3337.1,1.6381]
[1736964158409,2.9959,3337.9,3337.1,2.270184]
[1736964158730,2.9959,3337.9,3337.2,35.0]
[1736964158923,3.0,3338.1,3337.3,1.5]
[1736964159124,0.00979574,3338.2,3337.3,1.5]
[1736964159340,0.00979574,3338.2,3337.5,1.6381]
[1736964159515,0.00979574,3338.2,3337.6,35.613444]
[1736964160956,0.00979574,3338.2,3337.6,35.0]
[1736964161259,0.00979574,3338.2,3337.3,1.5]
[1736964161260,3.0,3338.1,3337.7,0.186]
[1736964161572,2.99594,3337.9,3337.7,0.186]
[1736964161762,4.26089848,3338.2,3337.7,0.186]
[1736964161763,2.9958,3338.0,3337.7,0.186]
[1736964161917,0.00979574,3338.2,3337.7,0.186]
[1736964162110,2.99578,3338.1,3337.7,0.186]
[1736964162316,2.99581,3338.0,3337.7,0.186]
[1736964163922,2.74569848,3338.2,3337.7,0.186]
[1736964164124,2.9959,3337.9,3337.7,0.186]
[1736964164338,2.99607,3337.8,3337.3,1.5]
[1736964164654,2.99593,3337.9,3337.4,0.186]
[1736964165494,3.0,3338.1,3337.4,0.186]
[1736964165495,2.996,3337.8,3337.4,0.186]
[1736964167553,2.99584,3338.0,3337.4,0.186]
[1736964169110,0.00979574,3338.2,3337.5,1.6381]
[1736964169279,3.00543574,3338.2,3337.5,1.6381]
[1736964169809,0.00979574,3338.2,3337.6,35.0]
[1736964169991,3.00543574,3338.2,3337.6,35.0]
[1736964170374,3.00543574,3338.2,3337.7,1.5]
[1736964171072,3.00543574,3338.2,3337.8,35.0]
[1736964171473,2.99572,3338.1,3337.8,35.0]
[1736964172021,2.99572,3338.1,3337.7,1.5]
[1736964172631,0.00979574,3338.2,3337.8,1.6637]
[1736964173870,3.00543574,3338.2,3337.8,1.6637]
[1736964174077,0.00979574,3338.2,3337.8,1.6637]
[1736964174365,2.99581,3338.0,3337.8,1.6637]
[1736964174853,2.99581,3338.0,3337.9,1.686]
[1736964178062,0.00979574,3338.2,3337.9,1.686]
[1736964178265,0.00979574,3338.2,3338.0,1.6637]
[1736964179323,0.00979574,3338.2,3338.1,1.5]
[1736964179863,3.00541574,3338.2,3338.1,1.5]